bitfinex/quotes_ETHUSD_20250519
["timestamp","ask_amount","ask_price","bid_price","bid_amount"]
[1747640317981,0.9068,2406.3,2406.0,4.15626685]
[1747640318312,0.9068,2406.3,2405.7,9.624]
[1747640318313,0.9068,2406.3,2406.2,4.15593051]
[1747640318515,0.8904,2406.6,2406.3,4.15569008]
[1747640318710,0.8904,2406.6,2406.2,4.1558833]
[1747640319310,0.8904,2406.6,2405.9,0.8803]
[1747640319512,0.8904,2406.6,2406.5,4.15541242]
[1747640319715,11.007,2406.8,2406.5,4.15541242]
[1747640319911,11.007,2406.8,2406.5,4.15531243]
[1747640320083,11.007,2406.8,2406.4,4.15550764]
[1747640320411,11.007,2406.8,2406.5,4.15533359]
[1747640320591,11.007,2406.8,2406.4,4.15548733]
[1747640320788,0.937,2406.5,2406.1,4.15610045]
[1747640321013,5.0924694,2406.5,2406.0,4.1561171]
[1747640321185,0.937,2406.5,2406.4,4.1555851]
[1747640321385,0.937,2406.5,2405.9,4.1563776]
[1747640321719,0.937,2406.5,2406.1,4.15610323]
[1747640321919,0.937,2406.5,2406.3,4.1557568]
[1747640322218,0.937,2406.5,2406.4,4.1555851]
[1747640322521,11.0234,2406.8,2406.5,4.15536589]
[1747640322832,11.0234,2406.8,2406.3,4.1556913]
[1747640322833,4.15508061,2406.7,2406.3,4.15564628]
[1747640323133,4.15517395,2406.7,2406.1,4.15604921]
[1747640323336,4.1555537,2406.5,2406.0,13.7811505]
[1747640323631,4.15538181,2406.6,2406.2,4.1559118]
[1747640323930,0.9534,2406.5,2406.2,4.1559118]
[1747640324439,11.0234,2406.8,2406.0,4.15622936]
[1747640324580,11.0234,2406.8,2406.5,4.15525496]
[1747640324923,0.9534,2406.8,2406.5,4.1553067]
[1747640325423,0.9500198,2406.8,2406.5,4.1553067]
[1747640326518,0.9500198,2406.8,2405.8,5.10180477]
[1747640326724,5.10498136,2406.8,2406.2,4.15581047]
[1747640326920,4.15523975,2406.6,2406.1,4.156065]
[1747640327217,4.15555768,2406.5,2406.0,13.71319887]
[1747640327623,4.15559946,2406.4,2406.0,13.71319887]
[1747640327833,7.8035829,2406.6,2405.9,4.15643704]
[1747640327834,4.1557728,2406.3,2405.9,4.15643704]
[1747640327991,10.07,2406.5,2405.5,0.8756]
[1747640328190,10.07,2406.5,2406.2,4.15582255]
[1747640329086,10.07,2406.5,2406.1,4.15602136]
[1747640329418,10.07,2406.5,2405.9,4.15644873]
[1747640329721,10.07,2406.5,2406.2,4.15584398]
[1747640332136,10.07,2406.5,2406.3,4.15575288]
[1747640332353,4.15624501,2406.1,2405.3,0.8902]
[1747640332652,0.872,2406.0,2405.7,4.15677738]
[1747640332958,4.15722232,2405.5,2405.0,18.8362]
[1747640333158,4.15732991,2405.4,2405.0,22.10397975]
[1747640333337,8.9378,2405.6,2404.8,4.15828578]
[1747640333635,8.9378,2405.6,2405.0,4.15788101]
[1747640333636,0.9378,2405.4,2405.0,4.15788101]
[1747640333837,0.9378,2405.4,2405.0,0.04157909]
[1747640334041,8.9185,2405.6,2404.9,0.9032]
[1747640334344,0.9185,2405.6,2405.3,4.15739753]
[1747640334641,0.9185,2405.6,2404.9,5.0613626]
[1747640334642,0.9185,2405.6,2405.4,4.15722892]
[1747640334825,0.9185,2405.6,2405.4,4.1572208]
[1747640335027,0.9185,2405.6,2405.2,4.1576584]
[1747640335237,11.024,2405.9,2405.6,4.15695269]
[1747640335410,0.954,2405.9,2405.4,4.1572241]
[1747640335832,4.15669745,2405.8,2405.0,9.558]
[1747640336140,5.11053566,2405.9,2405.3,4.15732968]
[1747640336443,5.11053566,2405.9,2405.4,4.15719558]
[1747640337145,0.954,2405.9,2405.5,4.1571019]
[1747640337444,5.11044997,2405.9,2405.5,4.1571019]
[1747640337748,5.11044997,2405.9,2405.4,4.15721304]
[1747640338445,4.15663384,2405.8,2405.3,4.15742294]
[1747640338631,4.15688299,2405.7,2405.2,4.15757405]
[1747640338838,4.15678293,2405.8,2405.3,4.15747397]
[1747640339350,4.15678293,2405.8,2405.4,4.1572931]
[1747640340216,3.19939913,2405.9,2405.6,4.15696047]
[1747640340410,0.954,2405.9,2405.7,4.15677338]
[1747640340622,0.954,2405.9,2405.1,4.15780093]
[1747640340821,0.954,2405.9,2405.5,4.15701107]
[1747640341256,0.954,2405.9,2405.7,4.15670565]
[1747640341550,0.9051,2406.3,2405.9,4.15636718]
[1747640341753,0.9051,2406.3,2406.1,4.15598905]
[1747640342126,0.9051,2406.3,2406.2,4.15593051]
[1747640342451,0.8634,2406.6,2406.2,4.15582239]
[1747640342614,0.8634,2406.6,2406.3,4.15565635]
[1747640342822,0.8634,2406.6,2406.4,4.15551483]
[1747640343029,0.8634,2406.6,2406.5,4.15541242]
[1747640343228,0.9648,2406.9,2406.5,4.15541242]
[1747640343750,0.05,2406.9,2406.8,4.15489446]
[1747640346717,0.05,2406.9,2406.8,5.07659446]
[1747640350739,0.05,2406.9,2406.8,13.71089446]
[1747640351618,0.05,2406.9,2406.8,4.15489446]
[1747640351857,0.05,2406.9,2406.8,13.70989446]
[1747640352556,0.05,2406.9,2406.8,4.15489446]
[1747640352859,0.05,2406.9,2406.8,13.70989446]
[1747640353056,0.05,2406.9,2406.8,15.3137942]
[1747640353738,0.05,2406.9,2406.8,9.555]
[1747640353920,0.05,2406.9,2406.8,13.70989446]
[1747640354465,0.05,2406.9,2406.8,4.15489446]
[1747640356272,0.05,2406.9,2406.8,4.1964376]
[1747640356472,0.05,2406.9,2406.8,4.15489446]
[1747640356633,0.05,2406.9,2406.8,11.36966527]
[1747640356832,0.05,2406.9,2406.8,9.49]
[1747640357134,0.05,2406.9,2406.8,13.64489446]
[1747640357340,0.05,2406.9,2406.7,13.64495269]
[1747640357732,0.05,2406.9,2406.7,9.49]
[1747640357945,0.05,2406.9,2406.8,4.15489446]
[1747640358290,0.05,2406.9,2406.7,13.64505234]
[1747640358629,0.05,2406.9,2406.7,4.15505234]
[1747640358827,0.05,2406.9,2406.6,4.15513831]
[1747640359131,4.71217998,2406.9,2406.4,17.80087705]
[1747640359361,0.05,2406.9,2406.4,9.49]
[1747640359565,0.05,2406.9,2406.6,4.15511913]
[1747640359867,0.05,2406.9,2406.4,13.64543439]
[1747640360025,0.05,2406.9,2406.2,17.949]
[1747640360372,0.05,2406.9,2406.6,4.15506744]
[1747640360664,0.05,2406.9,2406.7,4.15506142]
[1747640360869,0.05,2406.9,2406.6,4.155142]
[1747640361030,0.05,2406.9,2406.3,9.49]
[1747640361229,0.05,2406.9,2406.3,13.64572978]
[1747640361565,0.05,2406.9,2406.6,4.15513848]
[1747640362278,0.05,2406.9,2406.6,4.1551392]
[1747640362785,0.05,2406.9,2406.4,4.15553864]
[1747640363089,3.69826113,2406.9,2406.2,22.10483566]
[1747640363384,4.15560141,2406.4,2405.9,4.15634964]
[1747640363581,3.64826113,2406.3,2405.6,0.8629]
[1747640363742,5.01578636,2406.2,2405.7,4.15672053]
[1747640364079,4.15611001,2406.1,2405.7,5.52139258]
[1747640364584,5.01582772,2406.2,2405.8,4.15659785]
[1747640365080,0.8598,2406.2,2405.9,4.15640011]
[1747640365279,0.8598,2406.2,2406.0,4.15624125]
[1747640365475,0.8782,2406.5,2406.1,4.15610323]
[1747640365677,0.8782,2406.5,2405.9,0.8615]
[1747640365881,4.15513824,2406.7,2406.3,4.15568594]
[1747640365882,0.8782,2406.7,2406.3,4.15568594]
[1747640366182,0.8782,2406.7,2406.5,4.1553561]
[1747640367843,0.8782,2406.7,2406.5,13.6463561]
[1747640368040,4.20476684,2406.9,2406.8,4.15489446]
[1747640368041,0.05,2406.9,2406.8,4.15489446]
[1747640368241,0.05,2406.9,2406.8,5.00569446]
[1747640369965,0.05,2406.9,2406.8,5.23520229]
[1747640370769,0.05,2406.9,2406.8,24.18520229]
[1747640371079,0.05,2406.9,2406.8,25.54987434]
[1747640372155,0.05,2406.9,2406.8,33.54987434]
[1747640372354,0.05,2406.9,2406.8,34.09987434]
[1747640372885,0.05,2406.9,2406.8,34.22960783]
[1747640373087,0.05,2406.9,2406.8,34.45444795]
[1747640373394,0.05,2406.9,2406.8,34.45444746]
[1747640373577,0.05,2406.9,2406.8,43.68612746]
[1747640373787,0.05,2406.9,2406.8,37.00644746]
[1747640373978,0.05,2406.9,2406.8,37.93344746]
[1747640374184,0.05,2406.9,2406.8,34.45444746]
[1747640374367,0.05,2406.9,2406.8,14.95444746]
[1747640374572,0.05,2406.9,2406.8,33.89444746]
[1747640375077,0.05,2406.9,2406.8,34.44444746]
[1747640376483,0.05,2406.9,2406.8,45.88429146]
[1747640376684,0.05,2406.9,2406.8,15.50444746]
[1747640376887,0.05,2406.9,2406.8,34.43744746]
[1747640377268,0.05,2406.9,2406.8,14.95444746]
[1747640377463,0.05,2406.9,2406.8,33.88644746]
[1747640378499,0.05,2406.9,2406.8,34.43644746]
[1747640380000,0.05,2406.9,2406.8,33.88044746]
[1747640380366,0.05,2406.9,2406.8,14.95444746]
[1747640380599,0.05,2406.9,2406.8,16.44244746]
[1747640380813,0.05,2406.9,2406.8,25.52487434]
[1747640381801,0.05,2406.9,2406.8,25.52187434]
[1747640382714,0.05,2406.9,2406.8,6.59987434]
[1747640382923,0.05,2406.9,2406.8,24.66907434]
[1747640383102,0.05,2406.9,2406.8,24.43956651]
[1747640383280,0.05,2406.9,2406.8,5.51956651]
[1747640383614,0.05,2406.9,2406.8,4.15489446]
[1747640383799,0.05,2406.9,2406.8,13.64289446]
[1747640384003,0.05,2406.9,2406.8,9.488]
[1747640384204,0.8947,2406.9,2406.8,9.488]
[1747640384706,0.8947,2406.9,2406.8,13.64289446]
[1747640384893,0.05,2406.9,2406.8,15.42268976]
[1747640386276,0.05,2406.9,2406.8,4.15489446]
[1747640386520,0.05,2406.9,2406.8,13.64289446]
[1747640388016,0.05,2406.9,2406.8,14.51469446]
[1747640388204,0.05,2406.9,2406.8,4.15489446]
[1747640388411,0.05,2406.9,2406.8,23.00189446]
[1747640388703,0.05,2406.9,2406.8,9.425]
[1747640388900,0.05,2406.9,2406.6,4.155213]
[1747640389517,0.05,2406.9,2406.7,4.15504354]
[1747640389914,0.05,2406.9,2406.6,4.15516741]
[1747640390115,0.05,2406.9,2406.6,4.15520602]
[1747640390420,0.05,2406.9,2406.8,4.15489446]
[1747640391320,0.05,2406.9,2406.8,5.06883961]
[1747640391779,0.05,2406.9,2406.8,4.15489446]
[1747640391986,0.9074,2406.9,2406.1,4.15610323]
[1747640392214,0.9074,2406.9,2406.5,4.15534293]
[1747640392518,0.9074,2406.9,2406.6,4.15517178]
[1747640392711,0.9074,2406.9,2406.5,4.1552706]
[1747640392900,5.98389202,2406.9,2406.4,4.15555271]
[1747640393100,5.98389202,2406.9,2406.5,4.15538676]
[1747640393331,4.15492536,2406.8,2406.4,4.15557561]
[1747640393508,5.9838458,2406.9,2406.2,4.15593051]
[1747640393716,1.82904253,2406.9,2406.3,13.58058819]
[1747640393903,5.98384993,2406.9,2406.4,4.15545574]
[1747640394222,5.98388529,2406.9,2406.4,4.15545574]
[1747640394521,5.98388529,2406.9,2406.5,4.15541019]
[1747640394729,4.15490409,2406.8,2406.4,4.15545699]
[1747640394889,5.98386914,2406.9,2406.4,4.15545699]
[1747640395092,1.82904253,2406.9,2406.6,4.1552375]
[1747640395332,0.9074,2406.9,2406.6,4.15523975]
[1747640395529,0.05,2406.9,2406.8,4.15489446]
[1747640395735,0.05,2406.9,2406.8,13.58089446]
[1747640396408,0.05,2406.9,2406.8,13.81049225]
[1747640396936,0.05,2406.9,2406.8,23.21449225]
[1747640397696,0.05,2406.9,2406.8,4.38449225]
[1747640398031,0.05,2406.9,2406.8,23.34224345]
[1747640398390,0.05,2406.9,2406.8,23.21249225]
[1747640398590,0.05,2406.9,2406.8,4.38449225]
[1747640398839,0.05,2406.9,2406.8,13.80949225]
[1747640399198,0.05,2406.9,2406.8,13.57989446]
[1747640399636,0.05,2406.9,2406.8,4.15489446]
[1747640400744,0.05,2406.9,2406.8,4.98588876]
[1747640400915,0.05,2406.9,2406.8,5.84448876]
[1747640401837,0.05,2406.9,2406.8,13.84448876]
[1747640402050,0.05,2406.9,2406.8,14.06938768]
[1747640402220,0.05,2406.9,2406.8,14.19912978]
[1747640402809,0.05,2406.9,2406.8,14.42874663]
[1747640403942,0.05,2406.9,2406.8,24.59793863]
[1747640404143,0.05,2407.9,2407.8,4.15316886]
[1747640404447,0.05,2407.9,2407.8,14.40881578]
[1747640407249,0.05,2407.9,2407.7,4.15332831]
[1747640407451,0.869,2407.9,2407.7,4.15332831]
[1747640407623,0.869,2407.9,2407.6,13.57745565]
[1747640407818,0.869,2407.9,2407.7,4.15331002]
[1747640408025,0.05,2407.9,2407.8,4.15316886]
[1747640408352,0.05,2407.9,2407.8,5.75717287]
[1747640410713,0.05,2407.9,2407.8,1.60400401]
[1747640410950,0.05,2407.9,2407.8,22.95216886]
[1747640411334,0.05,2407.9,2407.8,23.82706886]
[1747640412557,0.05,2407.9,2407.8,4.15316886]
[1747640412757,0.05,2407.9,2407.8,9.422]
[1747640412910,0.05,2407.9,2407.8,13.57516886]
[1747640413115,0.05,2407.9,2407.8,9.422]
[1747640413614,0.05,2407.9,2407.6,13.57541413]
[1747640413814,0.05,2407.9,2407.6,13.57541073]
[1747640414742,0.05,2407.9,2407.4,17.938]
[1747640414923,4.20310499,2407.9,2407.5,13.57566592]
[1747640415119,0.05,2407.9,2407.5,4.15367496]
[1747640415338,0.05,2407.9,2407.6,4.15339049]
[1747640415554,0.05,2407.9,2407.5,13.57563565]
[1747640415759,0.05,2407.9,2407.6,4.15343042]
[1747640416355,0.05,2407.9,2407.7,4.15321533]
[1747640416655,0.05,2407.9,2407.5,9.422]
[1747640416854,0.05,2407.9,2407.6,9.422]
[1747640416855,4.71233704,2407.9,2407.6,9.422]
[1747640417252,0.5592596,2407.9,2407.5,13.5166761]
[1747640418057,0.05,2407.9,2407.8,4.15316886]
[1747640418238,0.05,2407.9,2407.6,4.15340852]
[1747640418438,0.05,2407.9,2407.4,22.09176261]
[1747640418656,0.05,2407.9,2407.5,13.51661241]
[1747640418959,0.05,2407.9,2407.8,4.15316886]
[1747640419163,0.05,2407.9,2407.8,4.56848575]
[1747640419856,0.05,2407.9,2407.8,13.93148575]
[1747640422858,0.05,2407.9,2407.8,23.28348575]
[1747640423063,0.05,2407.9,2407.8,13.93148575]
[1747640424563,0.05,2407.9,2407.8,4.56848575]
[1747640424768,0.05,2407.9,2407.7,4.15326176]
[1747640425062,0.05,2407.9,2407.8,4.15316886]
[1747640425268,0.05,2407.9,2407.4,17.938]
[1747640425453,4.1533575,2407.7,2407.4,27.301]
[1747640425653,5.03781711,2407.8,2407.5,9.363]
[1747640426057,4.15334383,2407.7,2407.5,9.363]
[1747640426258,0.8196,2407.6,2406.7,9.363]
[1747640426558,0.8196,2407.1,2406.7,4.15497992]
[1747640426970,0.8196,2407.1,2406.4,9.363]
[1747640427154,0.8196,2407.1,2406.4,13.51844996]
[1747640427359,4.9740851,2406.4,2406.3,0.7691389]
[1747640428273,4.15583633,2406.3,2405.8,4.15660344]
[1747640429277,4.15605871,2406.2,2405.6,4.15695463]
[1747640429477,4.15654336,2405.9,2405.4,4.15719429]
[1747640429774,0.824,2406.0,2405.3,4.15745294]
[1747640429971,0.824,2406.0,2405.6,4.1568574]
[1747640430178,0.824,2406.0,2405.7,4.15678159]
[1747640430685,4.15657229,2405.9,2405.4,4.15716485]
[1747640430882,0.824,2406.0,2405.4,4.15716485]
[1747640431179,4.98036321,2406.0,2405.5,4.15712254]
[1747640431339,4.15654051,2405.9,2405.1,0.05]
[1747640431545,6.82779439,2406.0,2405.5,4.15713392]
[1747640432076,6.82781045,2406.0,2405.5,4.15713392]
[1747640432474,0.824,2406.0,2405.7,4.15664516]
[1747640432674,0.824,2406.0,2405.9,4.15644873]
[1747640432881,0.824,2406.0,2405.8,4.15654142]
[1747640433052,0.824,2406.0,2405.2,4.1575325]
[1747640433256,4.15646078,2405.9,2405.4,4.15717743]
[1747640433459,0.91366448,2405.9,2405.5,4.15713106]
[1747640433659,0.91366448,2405.9,2405.6,4.15693836]
[1747640433874,0.91366448,2405.9,2405.6,4.15685845]
[1747640434090,0.91366448,2405.9,2405.6,4.15695198]
[1747640434456,0.824,2406.0,2405.6,4.15695198]
[1747640434897,0.824,2406.0,2405.7,4.15676229]
[1747640435102,0.824,2406.0,2405.7,4.15664472]
[1747640435601,0.824,2406.0,2405.8,4.15662137]
[1747640435771,0.824,2406.0,2405.8,4.15657777]
[1747640436205,0.824,2406.0,2405.9,4.15644873]
[1747640436371,0.8882,2406.3,2405.9,4.15644873]
[1747640436570,0.8882,2406.3,2406.0,4.1561595]
[1747640436763,1.3790984,2406.3,2406.0,4.1561595]
[1747640437523,1.3790984,2406.3,2405.9,4.15633147]
[1747640438448,5.53494799,2406.3,2405.6,4.15680614]
[1747640438579,5.53494799,2406.3,2405.5,4.15701978]
[1747640438580,4.15630286,2406.0,2405.5,4.15701978]
[1747640438783,0.83124232,2406.0,2405.3,9.367]
[1747640439099,4.15602369,2406.2,2405.3,9.367]
[1747640439286,4.15620031,2406.1,2405.6,4.15682582]
[1747640439487,4.15620031,2406.1,2405.7,4.15676165]
[1747640439787,5.53486969,2406.3,2405.8,4.15648214]
[1747640440183,1.3790984,2406.3,2405.7,4.15669203]
[1747640440394,5.22661964,2406.2,2405.7,4.15669203]
[1747640440716,0.8033,2405.9,2405.5,4.15705961]
[1747640440924,4.95975432,2405.9,2405.5,4.15705961]
[1747640441631,0.8033,2405.9,2405.3,4.15747652]
[1747640441926,4.15677543,2405.8,2405.3,4.15745738]
[1747640442119,5.06837067,2405.8,2405.4,4.15729548]
[1747640443277,0.91165951,2405.8,2405.5,4.15710992]
[1747640443497,0.8033,2405.9,2405.5,4.15706252]
[1747640443832,0.8033,2405.9,2405.6,4.1568576]
[1747640443988,0.8033,2405.9,2405.2,9.369]
[1747640444183,0.8033,2405.9,2405.4,4.15722319]
[1747640444415,4.9598469,2405.9,2405.5,4.15712159]
[1747640444614,1.71490626,2405.9,2405.5,4.15712159]
[1747640445483,5.87143102,2405.9,2405.4,4.15720862]
[1747640445685,5.87145818,2405.9,2405.4,4.15720862]
[1747640446286,5.87137126,2405.9,2405.5,4.15711586]
[1747640446689,1.71490626,2405.9,2405.5,4.15704555]
[1747640447183,5.87135636,2405.9,2405.5,4.15704555]
[1747640447430,4.15667152,2405.8,2405.3,4.15741973]
[1747640447739,1.00276928,2405.8,2405.2,4.15757693]
[1747640447921,4.15694012,2405.7,2405.2,4.15757693]
[1747640448234,4.15694012,2405.7,2405.3,4.15739614]
[1747640448391,4.15670841,2405.8,2405.3,4.15739614]
[1747640448597,4.15670841,2405.8,2405.4,4.15729068]
[1747640448789,0.8033,2405.9,2405.1,9.364]
[1747640449106,2.72187417,2405.9,2405.4,4.15720649]
[1747640449290,4.15663785,2405.8,2405.4,4.15720649]
[1747640449485,4.15663785,2405.8,2405.2,4.1576584]
[1747640449486,6.87841432,2405.9,2405.5,4.15707112]
[1747640450095,2.72187417,2405.9,2405.5,4.15707112]
[1747640450293,2.72187417,2405.9,2405.5,4.15697981]
[1747640450739,4.15662284,2405.8,2405.4,4.15721932]
[1747640451033,5.26010486,2405.8,2405.4,4.15721932]
[1747640451234,5.26010486,2405.8,2405.3,4.15739529]
[1747640451903,4.15683762,2405.7,2405.1,0.05]
[1747640452260,1.10348202,2405.8,2405.2,9.314]
[1747640452403,1.10348202,2405.8,2405.4,4.15714621]
[1747640452588,4.15671894,2405.8,2405.2,13.47162035]
[1747640452925,4.15671894,2405.8,2405.3,4.15739914]
[1747640454121,4.15671894,2405.8,2405.2,13.47159321]
[1747640454327,4.15683272,2405.7,2405.3,4.15740669]
[1747640455129,0.8033,2405.9,2405.4,4.15729123]
[1747640455310,0.8033,2405.9,2405.2,9.314]
[1747640455311,0.8033,2405.9,2405.5,4.15705059]
[1747640455495,0.8033,2405.9,2405.5,4.15707299]
[1747640455696,0.8033,2405.9,2405.6,4.15688186]
[1747640456995,4.95978506,2405.9,2405.5,4.15707953]
[1747640457221,5.94907868,2405.9,2405.5,4.15707953]
[1747640457425,1.79259362,2405.9,2405.6,4.15693699]
[1747640457733,1.79259362,2405.9,2405.4,4.15723376]
[1747640457908,4.15665301,2405.8,2405.2,9.314]
[1747640458108,1.79259362,2405.9,2405.4,4.15728742]
[1747640458310,5.94912325,2405.9,2405.4,4.15728742]
[1747640459026,4.15671271,2405.8,2405.4,4.15728089]
[1747640459220,5.16723499,2405.8,2405.3,4.38804743]
[1747640459419,5.16723499,2405.8,2405.4,4.15729076]
[1747640459619,5.16723499,2405.8,2405.3,4.38814686]
[1747640459820,4.15683843,2405.7,2405.3,4.38814686]
[1747640460027,4.15683843,2405.7,2405.4,0.2307276]
[1747640460222,5.16722906,2405.8,2405.4,0.2307276]
[1747640460424,0.69598227,2405.7,2405.4,0.2307276]
[1747640460644,4.15713988,2405.5,2405.4,0.2307276]
[1747640460807,5.00853988,2405.5,2405.4,0.2307276]
[1747640461007,4.15744911,2405.4,2405.1,0.05]
[1747640461356,4.15749529,2405.3,2405.1,0.05]
[1747640462243,4.1574742,2405.4,2405.1,0.05]
[1747640462441,5.95170754,2405.4,2405.1,0.05]
[1747640463432,1.79430114,2405.4,2405.1,0.05]
[1747640463814,0.8514,2405.5,2405.1,4.20770232]
[1747640464242,5.00855972,2405.5,2405.1,4.20770232]
[1747640464404,4.15733621,2405.4,2405.1,0.05]
[1747640464609,4.1576584,2405.2,2405.1,0.05]
[1747640464945,14.8546584,2405.2,2405.1,0.05]
[1747640465238,25.33201695,2405.2,2405.1,0.05]
[1747640465609,25.87429265,2405.2,2405.1,0.05]
[1747640465834,44.47129265,2405.2,2405.1,0.05]
[1747640467627,4.15938773,2404.2,2404.1,0.05]
[1747640468960,5.03401392,2404.3,2404.1,0.05]
[1747640469118,1.84711728,2404.2,2404.1,0.05]
[1747640469657,3.64413716,2404.5,2404.1,0.05]
[1747640469811,9.276,2404.4,2404.1,0.05]
[1747640470010,13.4351373,2404.4,2404.1,0.05]
[1747640470632,4.15938773,2404.2,2404.1,0.05]
[1747640472526,8.62092489,2404.2,2404.1,0.05]
[1747640472751,10.82654114,2404.2,2404.1,0.05]
[1747640473350,29.41654114,2404.2,2404.1,0.05]
[1747640473965,3.02301625,2404.2,2404.1,0.05]
[1747640474123,10.0864,2404.2,2404.1,0.05]
[1747640474467,0.8626,2404.4,2404.1,0.05]
[1747640474631,5.02164971,2404.4,2404.1,0.05]
[1747640474959,0.8626,2404.4,2404.1,0.05]
[1747640475421,5.02164671,2404.4,2404.1,0.05]
[1747640475622,8.80546816,2404.4,2404.1,0.05]
[1747640476348,11.64413716,2404.7,2404.1,0.05]
[1747640476349,0.8059,2404.7,2404.2,4.15938773]
[1747640476528,0.8059,2404.7,2404.2,0.8349]
[1747640476718,13.42337686,2404.8,2404.3,4.15908695]
[1747640476922,9.265,2404.8,2404.3,4.15908695]
[1747640477225,11.98432983,2404.8,2404.1,4.20947026]
[1747640477422,0.8506,2404.6,2404.1,0.05]
[1747640477737,5.00998773,2404.2,2404.1,0.05]
[1747640478129,14.27298773,2404.2,2404.1,0.05]
[1747640480251,0.8506,2404.2,2404.1,0.05]
[1747640480758,30.6802874,2404.3,2404.1,0.05]
[1747640481068,24.4805392,2404.3,2404.1,0.05]
[1747640482258,4.15938773,2404.2,2404.1,0.05]
[1747640482473,15.61944522,2404.5,2404.2,4.15937898]
[1747640482474,10.07,2404.5,2404.2,4.15937898]
[1747640482800,4.15938773,2404.2,2404.1,0.05]
[1747640483075,12.15938773,2404.2,2404.1,0.05]
[1747640483375,21.41338773,2404.2,2404.1,0.05]
[1747640483583,25.34671169,2404.2,2404.1,0.05]
[1747640484073,12.15938773,2404.2,2404.1,0.05]
[1747640484842,13.01638773,2404.2,2404.1,0.05]
[1747640486747,22.26438773,2404.2,2404.1,0.05]
[1747640487376,13.01638773,2404.2,2404.1,0.05]
[1747640487597,13.40615619,2404.4,2404.1,0.05]
[1747640487779,4.15938773,2404.2,2404.1,0.05]
[1747640488666,4.1593851,2404.3,2404.1,0.05]
[1747640488950,4.15935953,2404.3,2404.1,0.05]
[1747640489187,4.15938773,2404.2,2404.1,0.05]
[1747640489479,4.15935953,2404.3,2404.1,0.05]
[1747640490004,4.15938773,2404.2,2404.1,0.05]
[1747640490644,12.15938773,2404.2,2404.1,0.05]
[1747640492885,15.80352489,2404.2,2404.1,0.05]
[1747640493062,16.60972489,2404.2,2404.1,0.05]
[1747640497456,25.83972489,2404.2,2404.1,0.05]
[1747640497654,29.93791759,2404.2,2404.1,0.05]
[1747640497885,16.25758043,2404.2,2404.1,0.05]
[1747640498250,12.0981927,2404.2,2404.1,0.05]
[1747640498455,16.25758043,2404.2,2404.1,0.05]
[1747640500694,1.83325865,2404.4,2404.1,4.20949095]
[1747640500860,28.0842,2404.6,2404.1,4.20949095]
[1747640500861,13.42476219,2404.6,2404.2,4.15931915]
[1747640501061,14.57133716,2404.9,2404.3,5.03497388]
[1747640501293,4.15836069,2404.8,2404.3,5.03491301]
[1747640501885,4.15853153,2404.7,2404.3,5.03491301]
[1747640502161,10.07,2404.9,2404.3,0.8758]
[1747640502383,10.07,2404.9,2404.5,4.15879224]
[1747640502696,4.15836888,2404.8,2404.4,4.15893842]
[1747640502894,16.04367671,2404.9,2404.4,4.15903691]
[1747640503470,15.52953621,2404.9,2404.3,0.8758]
[1747640503666,8.0,2404.8,2404.3,0.8758]
[1747640503868,4.15887706,2404.5,2404.3,0.8758]
[1747640504169,4.99070306,2404.5,2404.3,0.8758]
[1747640504700,0.83176936,2404.5,2404.1,0.05]
[1747640504994,4.15929905,2404.3,2404.1,0.05]
[1747640505195,12.15938773,2404.2,2404.1,0.05]
[1747640506499,10.90176936,2404.5,2404.1,0.05]
[1747640506704,5.66518618,2404.4,2404.1,0.05]
[1747640506997,5.66517179,2404.4,2404.1,0.05]
[1747640507202,4.15928706,2404.3,2404.1,0.05]
[1747640507561,4.15931282,2404.3,2404.1,0.05]
[1747640507989,4.15938773,2404.2,2404.1,0.05]
[1747640508203,4.72593175,2404.2,2404.1,0.05]
[1747640509167,13.66522525,2404.4,2404.1,0.05]
[1747640509365,12.15917275,2404.4,2404.1,0.05]
[1747640510404,10.07,2404.5,2404.2,0.8092]
[1747640510606,13.36342057,2404.8,2404.3,4.15907865]
[1747640510808,4.15852388,2404.7,2404.3,4.15907865]
[1747640511122,4.15861399,2404.7,2404.2,4.96848223]
[1747640511484,4.15861399,2404.7,2404.3,4.15920879]
[1747640511810,12.15839847,2404.8,2404.3,4.15920879]
[1747640512011,4.15852368,2404.7,2404.3,4.15920879]
[1747640512304,4.15852634,2404.7,2404.3,4.15911419]
[1747640512511,4.15852634,2404.7,2404.2,4.96849728]
[1747640513085,8.0,2404.8,2404.2,2.64799996]
[1747640513293,4.158255,2404.9,2404.5,4.15885734]
[1747640513494,4.15839393,2404.8,2404.4,4.15894344]
[1747640513800,12.15824313,2404.9,2404.4,4.15894344]
[1747640513979,14.79641391,2404.9,2404.4,4.15894344]
[1747640514180,10.63817078,2404.9,2404.3,4.15907811]
[1747640514379,4.15842375,2404.8,2404.3,8.31812922]
[1747640514588,4.15864091,2404.7,2404.2,6.8072891]
[1747640514803,4.15864091,2404.7,2404.2,4.96848914]
[1747640515292,4.15837028,2404.8,2404.4,4.15901847]
[1747640515488,0.8654,2405.1,2404.5,4.15878257]
[1747640515489,5.02332756,2405.1,2404.5,4.15878257]
[1747640515719,12.1581479,2405.0,2404.6,0.8428]
[1747640515901,4.15819154,2404.9,2404.6,0.8428]
[1747640516423,4.15827893,2404.9,2404.6,0.8428]
[1747640516594,0.83164537,2404.9,2404.6,0.8428]
[1747640516791,4.15852289,2404.7,2404.2,4.99987114]
[1747640516992,4.15841601,2404.8,2404.3,4.15905607]
[1747640517184,4.15841601,2404.8,2404.3,4.1590828]
[1747640517515,4.15841601,2404.8,2404.4,4.15902041]
[1747640517681,8.63412817,2404.9,2404.4,4.15902041]
[1747640517882,8.63412817,2404.9,2404.5,4.15885039]
[1747640518399,4.15860098,2404.7,2404.2,0.8406]
[1747640518713,4.15885304,2404.6,2404.2,0.8406]
[1747640518910,14.22863241,2404.7,2404.2,4.99990329]
[1747640519116,4.15873619,2404.6,2404.2,4.99990329]
[1747640519294,4.15889551,2404.5,2404.2,0.8406]
[1747640519709,4.15879935,2404.6,2404.2,0.8406]